[Event "Titled Tuesday Blitz August 1 Early 2023"]
[White "Itgelt, Khuyagtsogt"]
[Black "Dau Khuong Duy"]
[WhiteFideId "4902912"]
[BlackFideId "12424722"]
[WhiteElo "2660"]
[BlackElo "2872"]
[Result "0-1"]
[Round "7"]
[TimeControl "180+1"]
[Date "2023.08.01"]
[WhiteClock "0:00:00"]
[BlackClock "0:00:24"]
[Board "41"]

1. d4 {[%clk 0:03:00]}  Nf6 {[%clk 0:03:00]} 2. c4 {[%clk 0:03:00]}  g6 {[%clk 0:03:00]} 3. Nf3 {[%clk 0:03:01]}  Bg7 {[%clk 0:02:58]} 4. Nc3 {[%clk 0:03:00]}  O-O {[%clk 0:02:59]} 5. e4 {[%clk 0:03:00]}  d6 {[%clk 0:02:59]} 6. Be2 {[%clk 0:02:59]}  e5 {[%clk 0:03:00]} 7. d5 {[%clk 0:03:00]}  a5 {[%clk 0:02:59]} 8. Bg5 {[%clk 0:03:00]}  Na6 {[%clk 0:02:59]} 9. Nd2 {[%clk 0:02:57]}  h6 {[%clk 0:02:49]} 10. Be3 {[%clk 0:02:56]}  Nc5 {[%clk 0:02:47]} 11. a3 {[%clk 0:02:54]}  a4 {[%clk 0:02:47]} 12. Bxc5 {[%clk 0:02:53]}  dxc5 {[%clk 0:02:48]} 13. Nxa4 {[%clk 0:02:54]}  b6 {[%clk 0:02:48]} 14. Nc3 {[%clk 0:02:54]}  Nd7 {[%clk 0:02:47]} 15. Bd3 {[%clk 0:02:41]}  h5 {[%clk 0:02:46]} 16. Qc2 {[%clk 0:02:33]}  Bh6 {[%clk 0:02:45]} 17. O-O {[%clk 0:02:14]}  Bxd2 {[%clk 0:02:41]} 18. Qxd2 {[%clk 0:02:12]}  Kg7 {[%clk 0:02:42]} 19. f4 {[%clk 0:02:07]}  f6 {[%clk 0:02:42]} 20. f5 {[%clk 0:02:03]}  g5 {[%clk 0:02:42]} 21. Be2 {[%clk 0:01:54]}  Rh8 {[%clk 0:02:40]} 22. d6 {[%clk 0:01:51]}  c6 {[%clk 0:02:21]} 23. Rfd1 {[%clk 0:01:49]}  Bb7 {[%clk 0:02:16]} 24. b4 {[%clk 0:01:47]}  Qf8 {[%clk 0:02:11]} 25. Qd3 {[%clk 0:01:31]}  Qf7 {[%clk 0:02:09]} 26. b5 {[%clk 0:01:27]}  Rhd8 {[%clk 0:02:03]} 27. a4 {[%clk 0:01:19]}  h4 {[%clk 0:02:00]} 28. Qb1 {[%clk 0:01:07]}  Rdb8 {[%clk 0:01:48]} 29. bxc6 {[%clk 0:01:00]}  Bxc6 {[%clk 0:01:47]} 30. Nb5 {[%clk 0:01:01]}  Bxb5 {[%clk 0:01:37]} 31. axb5 {[%clk 0:00:50]}  Qe8 {[%clk 0:01:34]} 32. Qd3 {[%clk 0:00:42]}  Rxa1 {[%clk 0:01:27]} 33. Rxa1 {[%clk 0:00:43]}  Ra8 {[%clk 0:01:28]} 34. Qd1 {[%clk 0:00:29]}  Qb8 {[%clk 0:01:25]} 35. Rc1 {[%clk 0:00:19]}  Qb7 {[%clk 0:01:21]} 36. Bf3 {[%clk 0:00:15]}  Ra2 {[%clk 0:01:19]} 37. h3 {[%clk 0:00:15]}  Qa8 {[%clk 0:01:12]} 38. Kh2 {[%clk 0:00:15]}  Qa3 {[%clk 0:01:09]} 39. Rb1 {[%clk 0:00:10]}  Qe3 {[%clk 0:01:07]} 40. Rb3 {[%clk 0:00:06]}  Qf4+ {[%clk 0:01:07]} 41. Kh1 {[%clk 0:00:06]}  Rd2 {[%clk 0:01:07]} 42. Qa1 {[%clk 0:00:05]}  Rxd6 {[%clk 0:01:07]} 43. Rb1 {[%clk 0:00:04]}  Qe3 {[%clk 0:01:03]} 44. Rd1 {[%clk 0:00:03]}  Rxd1+ {[%clk 0:01:01]} 45. Qxd1 {[%clk 0:00:03]}  Qd4 {[%clk 0:01:02]} 46. Qe2 {[%clk 0:00:02]}  Kf8 {[%clk 0:01:00]} 47. Bh5 {[%clk 0:00:03]}  Ke7 {[%clk 0:01:01]} 48. Bg6 {[%clk 0:00:03]}  Kd6 {[%clk 0:01:00]} 49. Bf7 {[%clk 0:00:03]}  Qa1+ {[%clk 0:00:52]} 50. Kh2 {[%clk 0:00:03]}  Qc3 {[%clk 0:00:43]} 51. Bd5 {[%clk 0:00:03]}  Qg3+ {[%clk 0:00:43]} 52. Kh1 {[%clk 0:00:03]}  g4 {[%clk 0:00:37]} 53. Qxg4 {[%clk 0:00:02]}  Qxg4 {[%clk 0:00:21]} 54. hxg4 {[%clk 0:00:03]}  Ke7 {[%clk 0:00:22]} 55. Kh2 {[%clk 0:00:04]}  Kf8 {[%clk 0:00:21]} 56. Kh3 {[%clk 0:00:04]}  Kg7 {[%clk 0:00:22]} 57. Kxh4 {[%clk 0:00:01]}  Kh6 {[%clk 0:00:22]} 58. g5+ {[%clk 0:00:02]}  fxg5+ {[%clk 0:00:23]} 59. Kg3 {[%clk 0:00:01]}  Nf6 {[%clk 0:00:23]} 60. Be6 {[%clk 0:00:00]}  Nxe4+ {[%clk 0:00:24]} 0-1


[Site "https://www.chess.com"]

[Event "Titled Tuesday Blitz August 1 Early 2023"]
[White "Molina, Roberto Junio Brito"]
[Black "Manukyan, Sargis A."]
[WhiteFideId "2109450"]
[BlackFideId "13303970"]
[WhiteElo "2850"]
[BlackElo "2641"]
[Result "1/2-1/2"]
[Round "7"]
[TimeControl "180+1"]
[Date "2023.08.01"]
[WhiteClock "0:00:07"]
[BlackClock "0:00:14"]
[Board "44"]

1. e4 {[%clk 0:02:55]}  c5 {[%clk 0:03:00]} 2. Nf3 {[%clk 0:02:55]}  d6 {[%clk 0:03:00]} 3. d4 {[%clk 0:02:55]}  cxd4 {[%clk 0:03:01]} 4. Nxd4 {[%clk 0:02:55]}  Nf6 {[%clk 0:03:01]} 5. Nc3 {[%clk 0:02:56]}  g6 {[%clk 0:03:02]} 6. Be2 {[%clk 0:02:50]}  Bg7 {[%clk 0:03:03]} 7. O-O {[%clk 0:02:49]}  O-O {[%clk 0:03:03]} 8. Re1 {[%clk 0:02:48]}  Nc6 {[%clk 0:03:04]} 9. Nb3 {[%clk 0:02:48]}  Be6 {[%clk 0:03:03]} 10. Bf1 {[%clk 0:02:48]}  Qc8 {[%clk 0:03:03]} 11. Bg5 {[%clk 0:02:46]}  Rd8 {[%clk 0:03:03]} 12. Nd5 {[%clk 0:02:41]}  h6 {[%clk 0:03:00]} 13. Nxf6+ {[%clk 0:02:38]}  exf6 {[%clk 0:03:00]} 14. Bf4 {[%clk 0:02:33]}  d5 {[%clk 0:03:00]} 15. exd5 {[%clk 0:02:33]}  Rxd5 {[%clk 0:02:59]} 16. Qc1 {[%clk 0:02:32]}  g5 {[%clk 0:02:57]} 17. Be3 {[%clk 0:02:27]}  Nb4 {[%clk 0:02:49]} 18. Re2 {[%clk 0:02:18]}  f5 {[%clk 0:02:45]} 19. a3 {[%clk 0:02:12]}  Na6 {[%clk 0:02:39]} 20. f4 {[%clk 0:02:05]}  g4 {[%clk 0:02:24]} 21. c3 {[%clk 0:01:54]}  b6 {[%clk 0:02:02]} 22. Bd4 {[%clk 0:01:38]}  Nc5 {[%clk 0:02:00]} 23. Nxc5 {[%clk 0:01:38]}  Bxd4+ {[%clk 0:01:41]} 24. cxd4 {[%clk 0:01:37]}  bxc5 {[%clk 0:01:42]} 25. dxc5 {[%clk 0:01:26]}  Qxc5+ {[%clk 0:01:39]} 26. Qxc5 {[%clk 0:01:18]}  Rxc5 {[%clk 0:01:40]} 27. Rd2 {[%clk 0:01:15]}  Rac8 {[%clk 0:01:38]} 28. Bd3 {[%clk 0:01:10]}  h5 {[%clk 0:01:34]} 29. Kf2 {[%clk 0:01:08]}  h4 {[%clk 0:01:34]} 30. g3 {[%clk 0:01:07]}  h3 {[%clk 0:01:32]} 31. Re1 {[%clk 0:01:02]}  Kg7 {[%clk 0:01:32]} 32. Ke3 {[%clk 0:00:54]}  Kf6 {[%clk 0:01:30]} 33. Ree2 {[%clk 0:00:52]}  Rc1 {[%clk 0:01:30]} 34. Rc2 {[%clk 0:00:51]}  R8xc2 {[%clk 0:01:27]} 35. Rxc2 {[%clk 0:00:52]}  Rg1 {[%clk 0:01:26]} 36. Kd4 {[%clk 0:00:50]}  Rg2 {[%clk 0:01:21]} 37. Re2 {[%clk 0:00:49]}  Bb3 {[%clk 0:01:17]} 38. Kc3 {[%clk 0:00:49]}  Bd1 {[%clk 0:01:16]} 39. Rd2 {[%clk 0:00:49]}  Bf3 {[%clk 0:01:07]} 40. b4 {[%clk 0:00:48]}  Be4 {[%clk 0:01:01]} 41. Bf1 {[%clk 0:00:42]}  Rg1 {[%clk 0:00:58]} 42. Bc4 {[%clk 0:00:41]}  Bg2 {[%clk 0:00:50]} 43. a4 {[%clk 0:00:40]}  Rh1 {[%clk 0:00:50]} 44. b5 {[%clk 0:00:35]}  Rxh2 {[%clk 0:00:50]} 45. Bf1 {[%clk 0:00:28]}  Rh1 {[%clk 0:00:36]} 46. Bxg2 {[%clk 0:00:27]}  Rg1 {[%clk 0:00:36]} 47. Bd5 {[%clk 0:00:23]}  Rxg3+ {[%clk 0:00:36]} 48. Kb4 {[%clk 0:00:24]}  Rg1 {[%clk 0:00:34]} 49. a5 {[%clk 0:00:24]}  g3 {[%clk 0:00:32]} 50. b6 {[%clk 0:00:23]}  axb6 {[%clk 0:00:32]} 51. axb6 {[%clk 0:00:24]}  g2 {[%clk 0:00:33]} 52. Rb2 {[%clk 0:00:17]}  h2 {[%clk 0:00:12]} 53. b7 {[%clk 0:00:17]}  h1=Q {[%clk 0:00:10]} 54. b8=Q {[%clk 0:00:16]}  Re1 {[%clk 0:00:09]} 55. Qd6+ {[%clk 0:00:14]}  Kg7 {[%clk 0:00:09]} 56. Rxg2+ {[%clk 0:00:15]}  Kh7 {[%clk 0:00:07]} 57. Rg7+ {[%clk 0:00:13]}  Kxg7 {[%clk 0:00:08]} 58. Bxh1 {[%clk 0:00:14]}  Rxh1 {[%clk 0:00:09]} 59. Qe7 {[%clk 0:00:13]}  Rh6 {[%clk 0:00:09]} 60. Qg5+ {[%clk 0:00:13]}  Rg6 {[%clk 0:00:10]} 61. Qxf5 {[%clk 0:00:13]}  Rf6 {[%clk 0:00:10]} 62. Qe5 {[%clk 0:00:13]}  Kg6 {[%clk 0:00:11]} 63. Kc4 {[%clk 0:00:14]}  Re6 {[%clk 0:00:10]} 64. Qg5+ {[%clk 0:00:14]}  Kh7 {[%clk 0:00:10]} 65. Kd5 {[%clk 0:00:14]}  Rg6 {[%clk 0:00:09]} 66. Qf5 {[%clk 0:00:15]}  Kg7 {[%clk 0:00:10]} 67. Ke5 {[%clk 0:00:15]}  Rh6 {[%clk 0:00:09]} 68. Qg5+ {[%clk 0:00:14]}  Rg6 {[%clk 0:00:10]} 69. Qe7 {[%clk 0:00:14]}  Rh6 {[%clk 0:00:08]} 70. f5 {[%clk 0:00:14]}  Ra6 {[%clk 0:00:06]} 71. Qg5+ {[%clk 0:00:13]}  Kf8 {[%clk 0:00:07]} 72. Qd8+ {[%clk 0:00:11]}  Kg7 {[%clk 0:00:07]} 73. f6+ {[%clk 0:00:12]}  Kh7 {[%clk 0:00:07]} 74. Qf8 {[%clk 0:00:06]}  Re6+ {[%clk 0:00:06]} 75. Kd5 {[%clk 0:00:03]}  Rxf6 {[%clk 0:00:03]} 76. Ke5 {[%clk 0:00:03]}  Re6+ {[%clk 0:00:03]} 77. Kf5 {[%clk 0:00:03]}  Rf6+ {[%clk 0:00:04]} 78. Ke5 {[%clk 0:00:03]}  Re6+ {[%clk 0:00:03]} 79. Kd5 {[%clk 0:00:03]}  Kg6 {[%clk 0:00:03]} 80. Qg8+ {[%clk 0:00:03]}  Kf6 {[%clk 0:00:04]} 81. Qc8 {[%clk 0:00:04]}  Kg7 {[%clk 0:00:04]} 82. Qd8 {[%clk 0:00:05]}  Kg6 {[%clk 0:00:04]} 83. Qg8+ {[%clk 0:00:04]}  Kf6 {[%clk 0:00:05]} 84. Qh8+ {[%clk 0:00:05]}  Ke7 {[%clk 0:00:05]} 85. Qh4+ {[%clk 0:00:05]}  Kf8 {[%clk 0:00:05]} 86. Qg5 {[%clk 0:00:06]}  Rg6 {[%clk 0:00:05]} 87. Qf5 {[%clk 0:00:06]}  Kg7 {[%clk 0:00:05]} 88. Ke5 {[%clk 0:00:06]}  Re6+ {[%clk 0:00:06]} 89. Kd5 {[%clk 0:00:06]}  Rg6 {[%clk 0:00:06]} 90. Qe5+ {[%clk 0:00:06]}  Kf8 {[%clk 0:00:06]} 91. Qc7 {[%clk 0:00:06]}  Re6 {[%clk 0:00:06]} 92. Qd8+ {[%clk 0:00:06]}  Kg7 {[%clk 0:00:07]} 93. Qd7 {[%clk 0:00:05]}  Rg6 {[%clk 0:00:07]} 94. Ke5 {[%clk 0:00:05]}  Re6+ {[%clk 0:00:07]} 95. Kf5 {[%clk 0:00:06]}  Rf6+ {[%clk 0:00:08]} 96. Kg5 {[%clk 0:00:06]}  Rg6+ {[%clk 0:00:09]} 97. Kf4 {[%clk 0:00:07]}  Rf6+ {[%clk 0:00:09]} 98. Ke4 {[%clk 0:00:07]}  Re6+ {[%clk 0:00:10]} 99. Kd5 {[%clk 0:00:08]}  Rg6 {[%clk 0:00:11]} 100. Qd8 {[%clk 0:00:08]}  Re6 {[%clk 0:00:11]} 101. Kd4 {[%clk 0:00:08]}  Rg6 {[%clk 0:00:12]} 102. Ke5 {[%clk 0:00:08]}  Re6+ {[%clk 0:00:13]} 103. Kf5 {[%clk 0:00:09]}  Rg6 {[%clk 0:00:13]} 104. Qe7 {[%clk 0:00:09]}  Kg8 {[%clk 0:00:12]} 105. Qe5 {[%clk 0:00:08]}  Re6 {[%clk 0:00:11]} 106. Qg3+ {[%clk 0:00:07]}  Rg6 {[%clk 0:00:11]} 107. Qh4 {[%clk 0:00:08]}  Re6 {[%clk 0:00:11]} 108. Qg5+ {[%clk 0:00:08]}  Rg6 {[%clk 0:00:12]} 109. Qd8+ {[%clk 0:00:08]}  Kg7 {[%clk 0:00:12]} 110. Qd4+ {[%clk 0:00:08]}  Kg8 {[%clk 0:00:12]} 111. Qc3 {[%clk 0:00:08]}  Re6 {[%clk 0:00:12]} 112. Qb2 {[%clk 0:00:07]}  Rg6 {[%clk 0:00:13]} 113. Qb3 {[%clk 0:00:07]}  Re6 {[%clk 0:00:13]} 114. Qc3 {[%clk 0:00:07]}  Rg6 {[%clk 0:00:13]} 115. Qc4 {[%clk 0:00:07]}  Kg7 {[%clk 0:00:13]} 116. Qd4+ {[%clk 0:00:07]}  Kg8 {[%clk 0:00:14]} 117. Qc3 {[%clk 0:00:07]}  Re6 {[%clk 0:00:14]} 118. Qb2 {[%clk 0:00:06]}  Rg6 {[%clk 0:00:14]} 119. Qb8+ {[%clk 0:00:06]}  Kg7 {[%clk 0:00:14]} 120. Qb2+ {[%clk 0:00:07]}  Kg8 {[%clk 0:00:14]} 1/2-1/2


[Site "https://www.chess.com"]

[Event "Titled Tuesday Blitz August 1 Early 2023"]
[White "Timofeev, Artyom"]
[Black "Malek, Jan"]
[WhiteFideId "4140419"]
[BlackFideId "21864080"]
[WhiteElo "2850"]
[BlackElo "2638"]
[Result "1/2-1/2"]
[Round "7"]
[TimeControl "180+1"]
[Date "2023.08.01"]
[WhiteClock "0:00:26"]
[BlackClock "0:00:15"]
[Board "45"]

1. c4 {[%clk 0:03:00]}  b6 {[%clk 0:02:57]} 2. e4 {[%clk 0:02:58]}  Bb7 {[%clk 0:02:57]} 3. Nc3 {[%clk 0:02:58]}  e5 {[%clk 0:02:57]} 4. Nf3 {[%clk 0:02:56]}  Nf6 {[%clk 0:02:56]} 5. Nxe5 {[%clk 0:02:56]}  Qe7 {[%clk 0:02:55]} 6. d4 {[%clk 0:02:55]}  d6 {[%clk 0:02:55]} 7. Nf3 {[%clk 0:02:51]}  Nxe4 {[%clk 0:02:54]} 8. Nxe4 {[%clk 0:02:45]}  Qxe4+ {[%clk 0:02:54]} 9. Be2 {[%clk 0:02:45]}  Be7 {[%clk 0:02:53]} 10. O-O {[%clk 0:02:45]}  O-O {[%clk 0:02:53]} 11. Bd3 {[%clk 0:02:42]}  Qg4 {[%clk 0:02:49]} 12. d5 {[%clk 0:02:15]}  Nd7 {[%clk 0:02:48]} 13. Bxh7+ {[%clk 0:02:10]}  Kh8 {[%clk 0:02:07]} 14. Bd3 {[%clk 0:02:08]}  Bf6 {[%clk 0:02:06]} 15. h3 {[%clk 0:02:08]}  Qh5 {[%clk 0:02:06]} 16. Qc2 {[%clk 0:01:55]}  Nc5 {[%clk 0:02:01]} 17. Bf5 {[%clk 0:01:49]}  Bc8 {[%clk 0:01:59]} 18. Bxc8 {[%clk 0:01:48]}  Raxc8 {[%clk 0:02:00]} 19. Be3 {[%clk 0:01:49]}  Rce8 {[%clk 0:01:56]} 20. Bxc5 {[%clk 0:01:48]}  bxc5 {[%clk 0:01:56]} 21. Rfe1 {[%clk 0:01:48]}  g6 {[%clk 0:01:55]} 22. Rad1 {[%clk 0:01:46]}  Kg7 {[%clk 0:01:55]} 23. b3 {[%clk 0:01:46]}  a5 {[%clk 0:01:50]} 24. Re2 {[%clk 0:01:42]}  Rxe2 {[%clk 0:01:49]} 25. Qxe2 {[%clk 0:01:41]}  Qf5 {[%clk 0:01:48]} 26. Qd3 {[%clk 0:01:38]}  Qd7 {[%clk 0:01:44]} 27. Re1 {[%clk 0:01:30]}  a4 {[%clk 0:01:43]} 28. h4 {[%clk 0:01:28]}  Rh8 {[%clk 0:01:38]} 29. g3 {[%clk 0:01:27]}  axb3 {[%clk 0:01:21]} 30. axb3 {[%clk 0:01:26]}  Qg4 {[%clk 0:01:21]} 31. Qe4 {[%clk 0:01:22]}  Qh3 {[%clk 0:01:17]} 32. Re3 {[%clk 0:01:20]}  Qd7 {[%clk 0:01:10]} 33. Kg2 {[%clk 0:01:19]}  Qd8 {[%clk 0:01:00]} 34. Qd3 {[%clk 0:01:10]}  Qd7 {[%clk 0:00:59]} 35. Re4 {[%clk 0:01:10]}  Qf5 {[%clk 0:00:57]} 36. Qe3 {[%clk 0:01:08]}  Qd7 {[%clk 0:00:51]} 37. Qf4 {[%clk 0:01:02]}  Rb8 {[%clk 0:00:47]} 38. Re3 {[%clk 0:01:01]}  Re8 {[%clk 0:00:46]} 39. Rxe8 {[%clk 0:00:49]}  Qxe8 {[%clk 0:00:47]} 40. Qe3 {[%clk 0:00:49]}  Qc8 {[%clk 0:00:38]} 41. Qe4 {[%clk 0:00:48]}  Qb8 {[%clk 0:00:36]} 42. Qd3 {[%clk 0:00:48]}  Qc8 {[%clk 0:00:36]} 43. Nh2 {[%clk 0:00:44]}  Bd4 {[%clk 0:00:35]} 44. Nf1 {[%clk 0:00:44]}  Qg4 {[%clk 0:00:33]} 45. Qf3 {[%clk 0:00:42]}  Qd7 {[%clk 0:00:31]} 46. Ne3 {[%clk 0:00:38]}  Qe7 {[%clk 0:00:31]} 47. h5 {[%clk 0:00:35]}  Bxe3 {[%clk 0:00:28]} 48. fxe3 {[%clk 0:00:28]}  gxh5 {[%clk 0:00:27]} 49. Qf4 {[%clk 0:00:27]}  Qf6 {[%clk 0:00:19]} 50. Kh3 {[%clk 0:00:25]}  Qxf4 {[%clk 0:00:13]} 51. gxf4 {[%clk 0:00:23]}  f5 {[%clk 0:00:13]} 52. Kh4 {[%clk 0:00:23]}  Kg6 {[%clk 0:00:14]} 53. Kg3 {[%clk 0:00:23]}  Kh6 {[%clk 0:00:14]} 54. Kh3 {[%clk 0:00:24]}  Kg6 {[%clk 0:00:14]} 55. Kh4 {[%clk 0:00:24]}  Kh6 {[%clk 0:00:15]} 56. Kg3 {[%clk 0:00:24]}  Kg6 {[%clk 0:00:15]} 57. Kh4 {[%clk 0:00:25]}  Kh6 {[%clk 0:00:15]} 58. Kh3 {[%clk 0:00:25]}  Kg6 {[%clk 0:00:15]} 59. Kh4 {[%clk 0:00:26]} 1/2-1/2


[Site "https://www.chess.com"]

[Event "Titled Tuesday Blitz August 1 Early 2023"]
[White "Wagh Suyog"]
[Black "Ovetchkin, Roman"]
[WhiteFideId "25071688"]
[BlackFideId "4119991"]
[WhiteElo "2779"]
[BlackElo "2631"]
[Result "0-1"]
[Round "7"]
[TimeControl "180+1"]
[Date "2023.08.01"]
[WhiteClock "0:00:00"]
[BlackClock "0:00:04"]
[Board "48"]

1. d4 {[%clk 0:03:00]}  Nf6 {[%clk 0:02:58]} 2. c4 {[%clk 0:03:01]}  c5 {[%clk 0:02:58]} 3. d5 {[%clk 0:03:01]}  b5 {[%clk 0:02:58]} 4. cxb5 {[%clk 0:03:01]}  a6 {[%clk 0:02:58]} 5. bxa6 {[%clk 0:03:01]}  g6 {[%clk 0:02:58]} 6. Nf3 {[%clk 0:03:00]}  Bg7 {[%clk 0:02:57]} 7. Nc3 {[%clk 0:03:01]}  O-O {[%clk 0:02:55]} 8. e4 {[%clk 0:03:01]}  Qa5 {[%clk 0:02:55]} 9. a7 {[%clk 0:02:57]}  Rxa7 {[%clk 0:02:50]} 10. Bd2 {[%clk 0:02:49]}  Ra8 {[%clk 0:02:37]} 11. Bd3 {[%clk 0:02:48]}  Ba6 {[%clk 0:02:35]} 12. Qe2 {[%clk 0:02:45]}  Bxd3 {[%clk 0:02:34]} 13. Qxd3 {[%clk 0:02:46]}  Qa6 {[%clk 0:02:34]} 14. Qxa6 {[%clk 0:02:43]}  Nxa6 {[%clk 0:02:33]} 15. O-O {[%clk 0:02:39]}  Rfb8 {[%clk 0:02:33]} 16. Rab1 {[%clk 0:02:31]}  Nb4 {[%clk 0:02:26]} 17. a4 {[%clk 0:02:29]}  d6 {[%clk 0:02:12]} 18. b3 {[%clk 0:02:27]}  Nc2 {[%clk 0:02:10]} 19. e5 {[%clk 0:02:18]}  Nd7 {[%clk 0:01:44]} 20. exd6 {[%clk 0:02:17]}  exd6 {[%clk 0:01:45]} 21. Nb5 {[%clk 0:02:16]}  Ra6 {[%clk 0:01:45]} 22. Rfc1 {[%clk 0:01:54]}  Nd4 {[%clk 0:01:40]} 23. Nfxd4 {[%clk 0:01:54]}  cxd4 {[%clk 0:01:41]} 24. Rc6 {[%clk 0:01:52]}  Rab6 {[%clk 0:01:10]} 25. Ba5 {[%clk 0:01:30]}  R6b7 {[%clk 0:01:08]} 26. Bc7 {[%clk 0:01:25]}  Ra8 {[%clk 0:01:06]} 27. Bxd6 {[%clk 0:01:21]}  Nf6 {[%clk 0:01:03]} 28. Rc7 {[%clk 0:01:01]}  Rbb8 {[%clk 0:00:53]} 29. Rc4 {[%clk 0:00:55]}  Rd8 {[%clk 0:00:52]} 30. Be7 {[%clk 0:00:49]}  Rd7 {[%clk 0:00:46]} 31. d6 {[%clk 0:00:48]}  Ne4 {[%clk 0:00:43]} 32. Rd1 {[%clk 0:00:45]}  Nc3 {[%clk 0:00:24]} 33. Nxc3 {[%clk 0:00:43]}  dxc3 {[%clk 0:00:25]} 34. Kf1 {[%clk 0:00:42]}  f5 {[%clk 0:00:18]} 35. Ke2 {[%clk 0:00:36]}  Kf7 {[%clk 0:00:18]} 36. Kd3 {[%clk 0:00:35]}  Be5 {[%clk 0:00:14]} 37. Kc2 {[%clk 0:00:34]}  Ra6 {[%clk 0:00:09]} 38. Rxc3 {[%clk 0:00:28]}  Bxc3 {[%clk 0:00:08]} 39. Kxc3 {[%clk 0:00:29]}  Ke6 {[%clk 0:00:08]} 40. Kb2 {[%clk 0:00:25]}  Rb7 {[%clk 0:00:08]} 41. Ka3 {[%clk 0:00:25]}  Kd7 {[%clk 0:00:08]} 42. b4 {[%clk 0:00:23]}  Rb5 {[%clk 0:00:08]} 43. Kb3 {[%clk 0:00:22]}  Re5 {[%clk 0:00:08]} 44. b5 {[%clk 0:00:21]}  Ra8 {[%clk 0:00:08]} 45. Rc1 {[%clk 0:00:20]}  Re2 {[%clk 0:00:07]} 46. b6 {[%clk 0:00:17]}  Rxf2 {[%clk 0:00:05]} 47. Rc7+ {[%clk 0:00:16]}  Ke6 {[%clk 0:00:05]} 48. b7 {[%clk 0:00:16]}  Rb8 {[%clk 0:00:05]} 49. a5 {[%clk 0:00:16]}  Rf1 {[%clk 0:00:05]} 50. a6 {[%clk 0:00:16]}  Rb1+ {[%clk 0:00:03]} 51. Ka2 {[%clk 0:00:15]}  Rb6 {[%clk 0:00:03]} 52. a7 {[%clk 0:00:14]}  Ra6+ {[%clk 0:00:03]} 53. Kb3 {[%clk 0:00:06]}  Rxa7 {[%clk 0:00:04]} 54. Kc3 {[%clk 0:00:06]}  Raxb7 {[%clk 0:00:05]} 55. Rc5 {[%clk 0:00:04]}  Kd7 {[%clk 0:00:03]} 56. Kd4 {[%clk 0:00:03]}  Rc8 {[%clk 0:00:03]} 57. Rxc8 {[%clk 0:00:01]}  Kxc8 {[%clk 0:00:03]} 58. Ke5 {[%clk 0:00:00]}  Kd7 {[%clk 0:00:04]} 0-1


[Site "https://www.chess.com"]

[Event "Titled Tuesday Blitz August 1 Early 2023"]
[White "Kushko, Dmitriy"]
[Black "Mamedov, Edgar"]
[WhiteFideId "14162261"]
[BlackFideId "13739980"]
[WhiteElo "2771"]
[BlackElo "2626"]
[Result "0-1"]
[Round "7"]
[TimeControl "180+1"]
[Date "2023.08.01"]
[WhiteClock "0:00:02"]
[BlackClock "0:00:19"]
[Board "49"]

1. Nf3 {[%clk 0:03:00]}  d5 {[%clk 0:02:59]} 2. g3 {[%clk 0:03:01]}  Bg4 {[%clk 0:02:59]} 3. Bg2 {[%clk 0:03:01]}  c6 {[%clk 0:02:58]} 4. h3 {[%clk 0:03:01]}  Bxf3 {[%clk 0:02:55]} 5. Bxf3 {[%clk 0:03:01]}  Nd7 {[%clk 0:02:55]} 6. O-O {[%clk 0:03:01]}  e6 {[%clk 0:02:53]} 7. d3 {[%clk 0:03:01]}  Bd6 {[%clk 0:02:51]} 8. Bg2 {[%clk 0:03:00]}  Ne7 {[%clk 0:02:51]} 9. e4 {[%clk 0:03:00]}  O-O {[%clk 0:02:51]} 10. Nd2 {[%clk 0:02:54]}  a5 {[%clk 0:02:48]} 11. a4 {[%clk 0:02:51]}  f5 {[%clk 0:02:24]} 12. Qe2 {[%clk 0:02:36]}  dxe4 {[%clk 0:02:01]} 13. dxe4 {[%clk 0:02:35]}  f4 {[%clk 0:02:01]} 14. Qc4 {[%clk 0:02:17]}  Rf6 {[%clk 0:01:49]} 15. gxf4 {[%clk 0:01:34]}  Bxf4 {[%clk 0:01:47]} 16. Nf3 {[%clk 0:01:34]}  Ng6 {[%clk 0:01:40]} 17. Be3 {[%clk 0:01:20]}  Qc7 {[%clk 0:01:10]} 18. Rad1 {[%clk 0:01:16]}  Raf8 {[%clk 0:01:09]} 19. Kh1 {[%clk 0:00:52]}  Bxe3 {[%clk 0:00:43]} 20. fxe3 {[%clk 0:00:52]}  Nde5 {[%clk 0:00:42]} 21. Nxe5 {[%clk 0:00:45]}  Qxe5 {[%clk 0:00:43]} 22. c3 {[%clk 0:00:26]}  Nh4 {[%clk 0:00:40]} 23. Rxf6 {[%clk 0:00:24]}  Rxf6 {[%clk 0:00:39]} 24. Rf1 {[%clk 0:00:09]}  Qg3 {[%clk 0:00:35]} 25. Qe2 {[%clk 0:00:09]}  Rg6 {[%clk 0:00:26]} 26. Rf2 {[%clk 0:00:08]}  Nxg2 {[%clk 0:00:25]} 27. Rxg2 {[%clk 0:00:08]}  Qxh3+ {[%clk 0:00:23]} 28. Rh2 {[%clk 0:00:03]}  Qg3 {[%clk 0:00:22]} 29. Rg2 {[%clk 0:00:02]}  Qxg2+ {[%clk 0:00:22]} 30. Qxg2 {[%clk 0:00:03]}  Rxg2 {[%clk 0:00:21]} 31. Kxg2 {[%clk 0:00:04]}  Kf7 {[%clk 0:00:19]} 32. Kg3 {[%clk 0:00:05]}  Kf6 {[%clk 0:00:18]} 33. Kf4 {[%clk 0:00:05]}  g5+ {[%clk 0:00:18]} 34. Kg4 {[%clk 0:00:05]}  h6 {[%clk 0:00:18]} 35. Kh5 {[%clk 0:00:02]}  Ke5 {[%clk 0:00:19]} 0-1


[Site "https://www.chess.com"]

[Event "Titled Tuesday Blitz August 1 Early 2023"]
[White "Ozates, Tuna"]
[Black "Aradhya, Garg"]
[WhiteFideId "6354521"]
[BlackFideId "25006746"]
[WhiteElo "2617"]
[BlackElo "2757"]
[Result "0-1"]
[Round "7"]
[TimeControl "180+1"]
[Date "2023.08.01"]
[WhiteClock "0:00:02"]
[BlackClock "0:00:07"]
[Board "51"]

1. e4 {[%clk 0:03:00]}  e5 {[%clk 0:02:59]} 2. Nf3 {[%clk 0:03:01]}  Nc6 {[%clk 0:03:00]} 3. Bb5 {[%clk 0:03:00]}  a6 {[%clk 0:03:00]} 4. Ba4 {[%clk 0:03:01]}  Nge7 {[%clk 0:03:01]} 5. Nc3 {[%clk 0:02:56]}  d6 {[%clk 0:02:59]} 6. O-O {[%clk 0:02:50]}  Bd7 {[%clk 0:02:59]} 7. a3 {[%clk 0:02:50]}  g6 {[%clk 0:02:58]} 8. d4 {[%clk 0:02:43]}  Bg7 {[%clk 0:02:58]} 9. d5 {[%clk 0:02:42]}  Nd4 {[%clk 0:02:56]} 10. Bxd7+ {[%clk 0:02:41]}  Qxd7 {[%clk 0:02:57]} 11. Nxd4 {[%clk 0:02:41]}  exd4 {[%clk 0:02:58]} 12. Ne2 {[%clk 0:02:42]}  c5 {[%clk 0:02:58]} 13. c3 {[%clk 0:02:35]}  dxc3 {[%clk 0:02:55]} 14. Nxc3 {[%clk 0:02:29]}  O-O {[%clk 0:02:55]} 15. Be3 {[%clk 0:02:28]}  b5 {[%clk 0:02:49]} 16. Qd2 {[%clk 0:02:27]}  f5 {[%clk 0:02:30]} 17. f3 {[%clk 0:02:23]}  fxe4 {[%clk 0:02:27]} 18. Nxe4 {[%clk 0:02:22]}  Nf5 {[%clk 0:02:27]} 19. Bf2 {[%clk 0:02:16]}  Rae8 {[%clk 0:02:22]} 20. Rad1 {[%clk 0:02:08]}  Nd4 {[%clk 0:02:20]} 21. Bg3 {[%clk 0:02:01]}  Be5 {[%clk 0:02:19]} 22. b4 {[%clk 0:01:58]}  c4 {[%clk 0:01:53]} 23. Rfe1 {[%clk 0:01:35]}  Nf5 {[%clk 0:01:34]} 24. Bxe5 {[%clk 0:01:28]}  Rxe5 {[%clk 0:01:34]} 25. f4 {[%clk 0:01:22]}  Ree8 {[%clk 0:01:22]} 26. Ng5 {[%clk 0:01:22]}  Qa7+ {[%clk 0:01:15]} 27. Kh1 {[%clk 0:01:20]}  Ne3 {[%clk 0:01:15]} 28. Rc1 {[%clk 0:01:06]}  Rf5 {[%clk 0:00:39]} 29. Ne6 {[%clk 0:00:56]}  Ng4 {[%clk 0:00:14]} 30. h3 {[%clk 0:00:55]}  Nf2+ {[%clk 0:00:14]} 31. Kh2 {[%clk 0:00:55]}  Nd3 {[%clk 0:00:14]} 32. g4 {[%clk 0:00:32]}  Nxe1 {[%clk 0:00:12]} 33. Rxe1 {[%clk 0:00:29]}  Rf7 {[%clk 0:00:12]} 34. Kg3 {[%clk 0:00:26]}  Qe7 {[%clk 0:00:09]} 35. h4 {[%clk 0:00:24]}  Qf6 {[%clk 0:00:09]} 36. Rh1 {[%clk 0:00:12]}  Rfe7 {[%clk 0:00:09]} 37. h5 {[%clk 0:00:10]}  Rxe6 {[%clk 0:00:09]} 38. dxe6 {[%clk 0:00:11]}  Qxe6 {[%clk 0:00:09]} 39. hxg6 {[%clk 0:00:10]}  hxg6 {[%clk 0:00:10]} 40. Qh2 {[%clk 0:00:04]}  Qe3+ {[%clk 0:00:10]} 41. Kh4 {[%clk 0:00:05]}  Kg7 {[%clk 0:00:08]} 42. g5 {[%clk 0:00:02]}  Rh8+ {[%clk 0:00:07]} 0-1


[Site "https://www.chess.com"]